fUSD/lending_fUSD_20240616
["ID","MTS","AMOUNT","RATE_DAILY","PERIOD"]
[329637539,1718519536296,-500.0,0.00024931,3]
[329637540,1718519536309,-1254.36,0.00024931,3]
[329637541,1718519536340,-1766.79,0.00024931,3]
[329637542,1718519536359,-622.71,0.00024931,3]
[329637543,1718519536395,-1978.99,0.00024931,3]
[329637544,1718519536416,-1271.11,0.00024931,3]
[329637545,1718519536447,-897.11,0.00024931,3]
[329637546,1718519536479,-673.16,0.00024931,3]
[329637547,1718519536527,-1458.59,0.00024931,3]
[329637548,1718519536544,-500.0,0.00024931,3]
[329637549,1718519536591,-500.0,0.00024931,3]
[329637550,1718519536618,-500.0,0.00024931,3]
[329637551,1718519536665,-503.26,0.00024931,3]
[329637552,1718519536679,-1882.15,0.00024931,3]
[329637553,1718519536693,-900.94,0.00024931,3]
[329637554,1718519536737,-6355.77,0.00024931,3]
[329637555,1718519536750,-797.28,0.00024931,3]
[329637556,1718519536763,-500.0,0.00024931,3]
[329637557,1718519536775,-448.92517147,0.00024931,3]
[329637558,1718519536806,-500.0,0.00024931,3]
[329637559,1718519536818,-774.66,0.00024931,3]
[329637560,1718519536832,-749.71,0.00024931,3]
[329637561,1718519536850,-564.43,0.00024931,3]
[329637562,1718519536867,-500.0,0.00024931,3]
[329637563,1718519536881,-1539.73,0.00024931,3]
[329637564,1718519536902,-500.0,0.00024931,3]
[329637565,1718519536925,-3132.14,0.00024931,3]
[329637566,1718519536970,-500.0,0.00024931,3]
[329637567,1718519537007,-500.0,0.00024931,3]
[329637568,1718519537032,-500.0,0.00024931,3]
[329637569,1718519537044,-1719.13,0.00024931,3]
[329637570,1718519537057,-500.0,0.00024931,3]
[329637571,1718519537073,-500.0,0.00024931,3]
[329637572,1718519537096,-500.0,0.00024931,3]
[329637573,1718519537116,-877.15,0.00024931,3]
[329637574,1718519537126,-638.19,0.00024931,3]
[329637575,1718519537139,-500.0,0.00024931,3]
[329637576,1718519537151,-507.88,0.00024931,3]
[329637577,1718519537164,-1256.01,0.00024931,3]
[329637578,1718519537182,-1319.04,0.00024931,3]
[329637579,1718519537197,-831.44,0.00024931,3]
[329637580,1718519537209,-1880.82,0.00024931,3]
[329637581,1718519537224,-889.01,0.00024931,3]
[329637582,1718519537236,-500.0,0.00024931,3]
[329637583,1718519537264,-839.73,0.00024931,3]
[329637584,1718519537300,-1019.43,0.00024931,3]
[329637585,1718519537324,-876.34,0.00024931,3]
[329637586,1718519537347,-1263.54,0.00024931,3]
[329637587,1718519537362,-1051.98,0.00024931,3]
[329637588,1718519537374,-868.27,0.00024931,3]
[329637589,1718519537404,-500.0,0.00024931,3]
[329637590,1718519537416,-500.0,0.00024931,3]
[329637591,1718519537436,-1623.39,0.00024931,3]
[329637592,1718519537447,-970.73,0.00024931,3]
[329637593,1718519537477,-898.14,0.00024931,3]
[329637594,1718519537501,-500.0,0.00024931,3]
[329637595,1718519537529,-826.07,0.00024931,3]
[329637596,1718519537554,-500.0,0.00024931,3]
[329637597,1718519537568,-882.22,0.00024931,3]
[329637598,1718519537581,-854.76,0.00024931,3]
[329637599,1718519537621,-1666.34,0.00024931,3]
[329637600,1718519537634,-1419.04,0.00024931,3]
[329637601,1718519537661,-938.36,0.00024931,3]
[329637602,1718519537676,-535.88,0.00024931,3]
[329637603,1718519537691,-771.1,0.00024931,3]
[329637604,1718519537736,-500.0,0.00024931,3]
[329637605,1718519537769,-546.14,0.00024931,3]
[329637606,1718519537806,-637.63,0.00024931,3]
[329637607,1718519537847,-500.0,0.00024931,3]
[329637608,1718519537869,-534.11,0.00024931,3]
[329637609,1718519537899,-500.0,0.00024931,3]
[329637610,1718519537927,-1079.11,0.00024931,3]
[329637611,1718519537945,-733.88,0.00024931,3]
[329637612,1718519537961,-500.0,0.00024931,3]
[329637613,1718519537980,-990.93,0.00024931,3]
[329637614,1718519537993,-500.0,0.00024931,3]
[329637615,1718519538005,-500.0,0.00024931,3]
[329637616,1718519538020,-592.82,0.00024931,3]
[329637617,1718519538040,-599.16,0.00024931,3]
[329637618,1718519538054,-2735.16,0.00024931,3]
[329637619,1718519538080,-631.36,0.00024931,3]
[329637620,1718519538108,-505.74,0.00024931,3]
[329637621,1718519538127,-609.47,0.00024931,3]
[329637622,1718519538139,-707.73,0.00024931,3]
[329637623,1718519538157,-500.0,0.00024931,3]
[329637624,1718519538180,-154.01467209,0.00024937,2]
[329637625,1718519538198,-296.2601255,0.00024943,2]
[329637626,1718519538224,-150.0,0.00024956,2]
[329637627,1718519538235,-154.84917017,0.00024958,2]
[329637628,1718519538246,-600.0,0.00024959,4]
[329637629,1718519538256,-600.0,0.0002496,4]
[329637630,1718519538269,-150.0,0.00024971,2]
[329637631,1718519538305,-150.0,0.00024975,2]
[329637632,1718519538324,-5000.0,0.00024983,2]
[329637633,1718519538336,-572.85988994,0.00024986,2]
[329637634,1718519538351,-150.0,0.00024987,2]
[329637635,1718519538362,-25000.0,0.00024988,2]
[329637636,1718519538390,-166.66666668,0.00024988,2]
[329637637,1718519538407,-1073.67538636,0.00024994,5]
[329637638,1718519538418,-154.84917017,0.00024994,2]
[329637639,1718519538430,-150.0,0.00024997,2]
[329637640,1718519538442,-58960.49861997,0.00025,2]
[329637641,1718519538700,-2937.84616869,0.00025,2]
[329637642,1718519538716,-2191.28868631,0.00025,2]
[329637643,1718519538786,-25.925545,0.00022739,3]
[329637644,1718519539304,-303.31642538,0.00022739,3]
[329637645,1718519539512,-811.0,0.00022395,2]
[329637646,1718519539533,-170.75802962,0.00022739,3]
[329637647,1718519539561,-500.0,0.00023013,3]
[329637648,1718519539578,-500.0,0.00023287,3]
[329637649,1718519539590,-500.0,0.00023561,3]
[329637650,1718519539612,-500.0,0.00023561,3]
[329637651,1718519539628,-500.0,0.00023835,3]
[329637652,1718519539639,-500.0,0.00023835,3]
[329637653,1718519539651,-500.0,0.00024109,3]
[329637654,1718519539676,-500.0,0.00024109,3]
[329637655,1718519539722,-500.0,0.00024383,3]
[329637656,1718519539761,-211.78532784,0.00024383,3]
[329637657,1718519539849,310.11693219,0.0001,2]
[329637658,1718519547544,4251.45280941,9.658e-05,2]
[329637659,1718519595842,410.93970272,0.0001,2]
[329637666,1718519671991,1797.15487374,6.94e-05,2]
[329637667,1718519839238,948.58301108,6.94e-05,2]
[329637668,1718519843826,90779.7701004,6.94e-05,2]
[329637669,1718519843900,457543.60769096,6.94e-05,2]
[329637670,1718519857789,107597.77168023,6.94e-05,2]
[329637671,1718519861236,553.50091747,6.94e-05,2]
[329637677,1718520355571,169.71,0.00011795,2]
[329637678,1718520366327,-150.0,0.00012674,2]
[329637679,1718520366383,-300.0,0.00012674,2]
[329637680,1718520366425,-16156.8672,0.00012675,2]
[329637681,1718520366477,-150.0,0.00012849,2]
[329637682,1718520366525,-500.0,0.00012877,2]
[329637683,1718520366563,-500.0,0.00012877,2]
[329637684,1718520366604,-500.0,0.00012877,2]
[329637685,1718520366636,-703.0,0.00012877,2]
[329637686,1718520366663,-500.0,0.00012877,2]
[329637687,1718520366711,-500.0,0.00012877,2]
[329637688,1718520366779,-500.0,0.00012877,2]
[329637689,1718520366825,-500.0,0.00012877,2]
[329637690,1718520366854,-500.0,0.00012877,2]
[329637691,1718520366885,-500.0,0.00012877,2]
[329637692,1718520366912,-500.0,0.00012877,2]
[329637693,1718520366951,-500.0,0.00012877,2]
[329637694,1718520366989,-500.0,0.00012877,2]
[329637695,1718520367037,-500.0,0.00012877,2]
[329637696,1718520367074,-500.0,0.00012877,2]
[329637697,1718520367103,-872.0,0.00012877,2]
[329637698,1718520367139,-504.5735947,0.000139,2]
[329637699,1718520367172,-2511.75437388,0.000139,2]
[329637700,1718520367202,-308.52320539,0.000139,2]
[329637701,1718520367251,-258.78560426,0.000139,2]
[329637702,1718520367288,-10782.49383502,0.000139,2]
[329637703,1718520367342,-150.58,0.0001399,2]
[329637704,1718520367383,-150.58,0.0001399,2]
[329637705,1718520367416,-150.58,0.0001399,2]
[329637706,1718520367457,-150.58,0.0001399,2]
[329637707,1718520367493,-150.58,0.0001399,2]
[329637708,1718520367528,-150.58,0.0001399,2]
[329637709,1718520367563,-150.58,0.0001399,2]
[329637710,1718520367591,-150.58,0.0001399,2]
[329637711,1718520367622,-150.58,0.0001399,2]
[329637712,1718520367656,-150.58,0.0001399,2]
[329637713,1718520367700,-150.58,0.0001399,2]
[329637714,1718520367736,-150.58,0.0001399,2]
[329637715,1718520367786,-150.58,0.0001399,2]
[329637716,1718520367825,-150.58,0.0001399,2]
[329637717,1718520367864,-150.58,0.0001399,2]
[329637718,1718520367920,-150.58,0.0001399,2]
[329637719,1718520367983,-150.58,0.0001399,2]
[329637720,1718520368015,-150.58,0.0001399,2]
[329637721,1718520368045,-150.58,0.0001399,2]
[329637722,1718520368075,-150.58,0.0001399,2]
[329637723,1718520368114,-150.58,0.0001399,2]
[329637724,1718520368151,-150.58,0.0001399,2]
[329637725,1718520368186,-150.58,0.0001399,2]
[329637726,1718520368214,-150.58,0.0001399,2]
[329637727,1718520368261,-150.58,0.0001399,2]
[329637728,1718520368510,-150.58,0.0001399,2]
[329637729,1718520368560,-150.58,0.0001399,2]
[329637730,1718520368615,-150.58,0.0001399,2]
[329637731,1718520368664,-150.58,0.0001399,2]
[329637732,1718520368725,-150.58,0.0001399,2]
[329637733,1718520368755,-150.58,0.0001399,2]
[329637734,1718520368785,-150.58,0.0001399,2]
[329637735,1718520368819,-150.58,0.0001399,2]
[329637736,1718520368851,-150.58,0.0001399,2]
[329637737,1718520368883,-150.58,0.0001399,2]
[329637738,1718520368917,-150.58,0.0001399,2]
[329637739,1718520368954,-150.58,0.0001399,2]
[329637740,1718520369010,-150.58,0.0001399,2]
[329637741,1718520369046,-150.58,0.0001399,2]
[329637742,1718520369083,-150.58,0.0001399,2]
[329637743,1718520369124,-150.58,0.0001399,2]
[329637744,1718520369192,-150.58,0.0001399,2]
[329637745,1718520369225,-150.58,0.0001399,2]
[329637746,1718520369258,-150.58,0.0001399,2]
[329637747,1718520369327,-150.58,0.0001399,2]
[329637748,1718520369379,-150.58,0.0001399,2]
[329637749,1718520369438,-150.58,0.0001399,2]
[329637750,1718520369473,-150.58,0.0001399,2]
[329637751,1718520369517,-150.58,0.0001399,2]
[329637752,1718520369557,-150.58,0.0001399,2]
[329637753,1718520369599,-150.58,0.0001399,2]
[329637754,1718520369652,-1250.11653251,0.00013998,2]
[329637755,1718520369685,-1656.45081999,0.00013999,2]
[329637756,1718520369745,-1949715.85483425,0.00014,2]
[329637757,1718520384467,290.10514488,6.94e-05,2]
[329637758,1718520387830,39541.18485512,6.94e-05,2]
[329637759,1718520387905,40000.0,6.94e-05,2]
[329637760,1718520387946,354925.10190795,6.94e-05,2]
[329637761,1718520388038,363.26147488,6.94e-05,2]
[329637762,1718520389358,948.58301108,6.94e-05,2]
[329637763,1718520392570,155.0,6.94e-05,2]
[329637764,1718520393248,19793.50088991,6.94e-05,2]
[329637765,1718520394077,958.58113052,6.593e-05,2]
[329637766,1718520395350,7542.96859688,6.94e-05,2]
[329637767,1718520396576,348.2371921,6.94e-05,2]
[329637768,1718520397643,2553.83967559,5.205e-05,2]
[329637769,1718520402438,290.10514488,6.94e-05,2]
[329637770,1718520404093,250.99373985,6.94e-05,2]
[329637771,1718520407313,439.41801084,6.94e-05,2]
[329637772,1718520407391,551.95124722,0.0001,2]
[329637773,1718520408549,4763.75015336,0.0001,2]
[329637774,1718520409160,19793.50088991,6.94e-05,2]
[329637775,1718520411307,180.84144565,0.0001,2]
[329637776,1718520411376,7542.96859688,6.94e-05,2]
[329637777,1718520412515,219.28826757,6.94e-05,2]
[329637778,1718520414509,324.93523309,6.94e-05,2]
[329637779,1718520417904,958.58113052,6.593e-05,2]
[329637780,1718520418444,290.10514488,6.94e-05,2]
[329637781,1718520423980,226.54300481,0.0001,2]
[329637782,1718520424582,4763.75015336,0.0001,2]
[329637783,1718520427220,19793.50088991,6.94e-05,2]
[329637784,1718520429229,180.84144565,0.0001,2]
[329637785,1718520431089,551.95124722,0.0001,2]
[329637786,1718520431782,1364.6376142,6.94e-05,2]
[329637787,1718520437275,7542.96859688,6.94e-05,2]
[329637788,1718520437901,935.81638933,6.593e-05,2]
[329637789,1718520438426,290.10514488,6.94e-05,2]
[329637790,1718520442962,4763.75015336,0.0001,2]
[329637791,1718520445230,19793.50088991,6.94e-05,2]
[329637792,1718520445286,201.28135274,0.0001,2]
[329637793,1718520447821,1364.6376142,6.94e-05,2]
[329637794,1718520449144,551.95124722,0.0001,2]
[329637795,1718520452441,290.10514488,6.94e-05,2]
[329637796,1718520457362,7542.96859688,6.94e-05,2]
[329637797,1718520458718,4763.75015336,0.0001,2]
[329637798,1718520463172,5509.24108498,6.94e-05,2]
[329637799,1718520465769,1364.6376142,6.94e-05,2]
[329637800,1718520469094,555.60792693,0.0001,2]
[329637801,1718520472449,376.24878506,6.94e-05,2]
[329637802,1718520474581,4763.75015336,0.0001,2]
[329637803,1718520475275,7542.96859688,6.94e-05,2]
[329637804,1718520475794,79998.0648921,6.94e-05,2]
[329637805,1718520481759,592.1534841,6.94e-05,2]
[329637806,1718520493280,7542.96859688,6.94e-05,2]
[329637807,1718520500559,4763.75015336,0.0001,2]
[329637808,1718520511278,7542.96859688,6.94e-05,2]
[329637809,1718520518587,4763.75015336,0.0001,2]
[329637810,1718520533330,7542.96859688,0.0001,2]
[329637811,1718520536569,1185.55434927,0.0001,2]
[329637812,1718520551589,6331.52169732,0.0001,2]
[329637813,1718520571432,-606.79,0.00012941,2]
[329637814,1718520571472,-589.32843621,0.00013299,2]
[329637815,1718520571501,-1299.99774208,0.00013299,2]
[329637816,1718520571527,-209.87,0.0001389,3]
[329637817,1718520571566,-209.13412171,0.000139,2]
[329637818,1718520603077,150.0,0.0001,2]
[329637819,1718520603164,150.0,0.0001,2]
[329637820,1718520603343,150.0,0.0001,2]
[329637821,1718520603533,150.0,0.0001,2]
[329637822,1718520603736,150.0,0.0001,2]
[329637823,1718520604171,150.0,0.0001,2]
[329637824,1718520604358,150.0,0.0001,2]
[329637825,1718520604615,150.0,0.0001,2]
[329637826,1718520604704,150.0,0.0001,2]
[329637827,1718520604892,150.0,0.0001,2]
[329637828,1718520605099,150.0,0.0001,2]
[329637829,1718520609109,150.0,0.0001,2]
[329637830,1718520609288,150.0,0.0001,2]
[329637831,1718520613298,150.0,0.0001,2]
[329637832,1718520613544,165.64016405,0.0001,2]
[329637839,1718520634024,-1674.50291592,0.000139,2]
[329637840,1718520634072,-308.52320539,0.000139,2]
[329637841,1718520634089,-4502.11396062,0.000139,2]
[329637842,1718520634120,-167.75806264,0.000139,2]
[329637843,1718520634138,-172.52373616,0.000139,2]
[329637844,1718520634176,-572.5610977,0.000139,2]
[329637845,1718520634209,-7188.32922334,0.000139,2]
[329637846,1718520634221,-150.63,0.0001399,2]
[329637847,1718520634233,-150.63,0.0001399,2]
[329637848,1718520634247,-150.63,0.0001399,2]
[329637849,1718520634259,-150.63,0.0001399,2]
[329637850,1718520634271,-1137.94782668,0.00013999,2]
[329637851,1718520634282,-7383.58189442,0.00014,2]
[329637852,1718520634310,-2212.0993828,0.00014,2]
[329637853,1718520635064,-6271.32552108,0.00014,2]
[329637854,1718520635094,-752877.32188912,0.00014,2]
[329637855,1718520635124,-3555.64828,0.00014,2]
[329638062,1718520640045,-4894.76902435,0.00014,2]
[329638080,1718520640502,-785.60005,0.00014,2]
[329638097,1718520640874,-1006.28438163,0.00014,2]
[329638375,1718520647953,-893.81930266,0.00014,2]
[329638394,1718520649340,-952.38710224,0.00014,2]
[329638395,1718520649729,-75284.45494476,0.00014,2]
[329638397,1718520652160,-794.0149999,0.00014,2]
[329638398,1718520652185,-356.39499999,0.00014,2]
[329638399,1718520652761,-2687785.07458509,0.00014,2]
[329638400,1718520652786,-568.64873079,0.00014,2]
[329638402,1718520652949,-659.94278815,0.00014,2]
[329638403,1718520653280,-49422.31555446,0.00014,2]
[329638405,1718521378703,-614.62,0.00011748,2]
[329638406,1718521378762,-198.46,0.00013059,2]
[329638407,1718521378809,-23900.0,0.00013081,2]
[329638408,1718521378848,-3429.87,0.00013081,2]
[329638409,1718521378880,-250.0,0.00013081,2]
[329638410,1718521378915,-1489.71,0.00013171,2]
[329638411,1718521378950,-958.58113052,0.000133,2]
[329638412,1718521379005,-160.61,0.00013555,2]
[329638413,1718521379048,-1288.22,0.00013744,2]
[329638414,1718521379122,-160.61,0.0001379,2]
[329638415,1718521379171,-167.92,0.00013817,2]
[329638416,1718521379229,-715.86,0.00013885,2]
[329638417,1718521379284,-250.0,0.00013885,2]
[329638418,1718521379336,-3000.0,0.0001389,2]
[329638419,1718521379376,-499.99,0.0001389,2]
[329638420,1718521379405,-150.99,0.0001389,2]
[329638421,1718521379435,-219.65,0.0001389,3]
[329638422,1718521379468,-183.07209151,0.000139,2]
[329638423,1718521379494,-157.60710863,0.000139,2]
[329638424,1718521379522,-1201.77480816,0.000139,2]
[329638425,1718521379553,-314.73824197,0.000139,2]
[329638426,1718521379580,-150.0,0.00013909,2]
[329638427,1718521379617,-5037.71661921,0.0001391,2]
[329638429,1718521647320,-338.9245797,0.00013124,2]
[329638430,1718521647353,-7855.82520513,0.00013125,2]
[329638442,1718521787191,583.88,0.00010991,2]
[329638450,1718521834031,-613.52715952,0.00013026,2]
[329638451,1718521834044,-71.52708783,0.00013027,2]
[329638452,1718521834307,-447.84691405,0.00013027,2]
[329638453,1718521834319,-160.61,0.00013028,2]
[329638454,1718521834333,-299.97320991,0.00013125,2]
[329638455,1718521834356,-472.86645304,0.00013126,2]
[329638456,1718521834377,-250.0,0.00013131,2]
[329638457,1718521834425,-343.01818257,0.00013215,2]
[329638458,1718521834447,-583.88,0.00013254,2]
[329638459,1718521834460,-150.0,0.00013284,2]
[329638460,1718521834482,-1205.19399657,0.00013331,2]
[329638461,1718521834518,-1232.04600343,0.00013331,2]
[329638462,1718521834534,-177.55,0.00013495,2]
[329638463,1718521834558,-462.52,0.00013495,2]
[329638464,1718521834569,-167.19,0.00013699,2]
[329638465,1718521834580,-200.0,0.00013699,2]
[329638466,1718521834605,-1025.59,0.00013699,2]
[329638467,1718521834632,-160.61,0.00013706,2]
[329638468,1718521834660,-414.50144157,0.00013723,2]
[329638469,1718521834685,-383.3117566,0.00013743,2]
[329638470,1718521834717,-499.99,0.00013758,2]
[329638471,1718521834731,-138.11092364,0.00013763,3]
[329638472,1718521834754,-28.74907636,0.00013763,3]
[329638474,1718521834773,-1096.62478645,0.00013763,2]
[329638476,1718521834788,-505.43,0.00013763,2]
[329638478,1718521834818,-3268.09521355,0.00013763,2]
[329638479,1718521834833,-1430.19063,0.0001377,2]
[329638480,1718521834848,-847.51,0.00013884,2]
[329638481,1718521834890,-168.81100199,0.000139,2]
[329638482,1718521834914,-166.53283239,0.000139,2]
[329638483,1718521834933,-314.73824196,0.000139,2]
[329638484,1718521834944,-2034.4688155,0.0001391,2]
[329638485,1718521835013,-1351.18456529,0.0001391,2]
[329638486,1718521835046,-165.86,0.0001399,3]
[329638487,1718521835088,-150.64,0.0001399,2]
[329638489,1718521835137,-5082.47018763,0.00013996,2]
[329638490,1718521835148,-28445.0173554,0.00013997,2]
[329638492,1718521835159,-2316.10695744,0.00013998,2]
[329638495,1718521835192,-155.0,0.00013998,2]
[329638498,1718521835204,-159.73084833,0.00013998,2]
[329638501,1718521835228,-792.73133039,0.00013998,2]
[329638504,1718521835251,-2314.63470574,0.00013998,2]
[329638506,1718521835262,-155.64076621,0.00013998,2]
[329638507,1718521835276,-400.0,0.00013998,2]
[329638510,1718521835317,-205.87538729,0.00013998,2]
[329638512,1718521835363,-155.0,0.00013998,2]
[329638513,1718521835384,-156.94653221,0.00013998,2]
[329638514,1718521835396,-302.97159658,0.00013998,2]
[329638515,1718521835428,-155.0,0.00013998,2]
[329638516,1718521835441,-337.64687831,0.00013998,2]
[329638517,1718521835452,-1082.22880173,0.00014,2]
[329638518,1718521835470,-1331.32137545,0.00014,2]
[329638519,1718521835491,-258.76851609,0.00014,2]
[329638520,1718521835513,-484.32,0.00014,2]
[329638521,1718521835868,-592.76841544,0.00014,2]
[329638522,1718521835902,-997.32022375,0.00014,2]
[329638523,1718521835928,-338.70707334,0.00014,2]
[329638524,1718521835947,-585.88473432,0.00014,2]
[329638525,1718521836012,-898.53028455,0.00014,2]
[329638526,1718521836045,-5332.26152514,0.00014,2]
[329638527,1718521838885,-67000.0,0.00014,2]
[329638530,1718521839393,-7231.84800193,0.00014,2]
[329638531,1718521839427,-914.0500234,0.00014,2]
[329638532,1718521839898,-1295.8075908,0.00014,2]
[329638533,1718521839953,-581.62096134,0.00014,2]
[329638534,1718521840294,-1009.91881608,0.00014,2]
[329638535,1718521840313,-1251.34130064,0.00014,2]
[329638536,1718521840372,-729.82228752,0.00014,2]
[329638537,1718521840424,-11195.46716759,0.00014,2]
[329638538,1718521840881,-5556.73676619,0.00014,2]
[329638539,1718521840902,-8682.59304591,0.00014,2]
[329638543,1718521844238,-1051.55295714,0.000139,2]
[329638544,1718521844250,-9659.69164308,0.00014,2]
[329638545,1718521844306,-532.148705,0.00014,2]
[329638546,1718521844629,-8942.93209379,0.00014,2]
[329638547,1718521846108,-294.95808523,0.00014,2]
[329638548,1718521846325,-74.87002268,0.00014,2]
[329638549,1718521846445,-4048.89963356,0.00014,2]
[329638550,1718521846460,-8154.7196893,0.00014,2]
[329638551,1718521846477,-1607.81060453,0.00014,2]
[329638552,1718521846778,-6872.31560383,0.00014,2]
[329638753,1718521851156,401.31314085,0.00010991,2]
[329639364,1718521938153,155.08477276,0.00010991,2]
[329639365,1718521948157,1858.17622841,8.243e-05,2]
[329639368,1718522314688,6152.0227802,0.00027,30]
[329639370,1718522394084,500.0,0.00027,30]
[329639371,1718522520694,2603.07886074,0.00027,30]
[329639374,1718522849334,-190.32,0.0001085,2]
[329639375,1718522849369,-300.0,0.00012789,2]
[329639376,1718522849399,-9995.69502536,0.0001279,2]
[329639384,1718522960370,597.35,0.00012068,2]
[329639385,1718522967237,-9589.06107979,0.0001279,2]
[329639386,1718522967267,-150.0,0.00013654,2]
[329639387,1718522967305,-167.92,0.00013668,2]
[329639388,1718522967389,-250.0,0.00013668,2]
[329639389,1718522967479,-23900.0,0.00013697,2]
[329639390,1718522967520,-286.59,0.00013713,2]
[329639391,1718522967560,-647.89,0.00013779,2]
[329639392,1718522967601,-167.19,0.00013796,2]
[329639393,1718522967671,-86.87285985,0.00013805,2]
[329639399,1718523034369,-150.09690082,0.00013555,2]
[329639400,1718523034412,-150.0,0.00013805,2]
[329639401,1718523034432,-3661.64714015,0.00013805,2]
[329639402,1718523034444,-48.48984327,0.00013874,2]
[329639403,1718523034457,-122.52015673,0.00013874,2]
[329639404,1718523034468,-1317.91869965,0.000139,2]
[329639405,1718523034482,-504.17893282,0.000139,2]
[329639406,1718523035081,-805.17999998,0.000139,2]
[329639407,1718523035095,-2100.13173218,0.000139,2]
[329639408,1718523035188,-157.60710861,0.000139,2]
[329639409,1718523035232,-168.81100199,0.000139,2]
[329639410,1718523035247,-166.53283238,0.000139,2]
[329639411,1718523035292,-314.73824196,0.000139,2]
[329639412,1718523035325,-920.10883748,0.000139,2]
[329639413,1718523035375,-414.50144157,0.0001394,2]
[329639414,1718523035465,-155.0,0.00013998,2]
[329639415,1718523035488,-2551.73934657,0.00013998,2]
[329639416,1718523035606,-515.41513638,0.00013998,2]
[329639417,1718523035656,-532.05845602,0.00013998,2]
[329639418,1718523035669,-6.6123291,0.00013998,2]
[329639419,1718523036057,-2524.5776709,0.00013998,2]
[329639420,1718523036069,-186.98469308,0.00013999,2]
[329639421,1718523036101,-13016.9128124,0.00014,2]
[329639426,1718523039790,-550.6644083,0.00014,2]
[329639427,1718523039807,-441.0,0.00014,2]
[329639428,1718523041081,-3946.75491717,0.00014,2]
[329639429,1718523041122,-8167.84497334,0.00014,2]
[329639441,1718523044361,-143374.18135033,0.00014,2]
[329639442,1718523044393,-1000.00342444,0.00014,2]
[329639444,1718523047698,-1698.5449951,0.00014,2]
[329639445,1718523047729,-132990.58078825,0.00014,2]
[329639446,1718523048026,-285.59871812,0.00014,2]
[329639447,1718523051743,-492.40673128,0.00014,2]
[329639448,1718523051886,-5230.41479082,0.00014,2]
[329639449,1718523051924,-22365.9212155,0.00014,2]
[329639450,1718523051968,-447.40209879,0.00014,2]
[329639452,1718523056130,-2013.18744196,0.00014,2]
[329639453,1718523056164,-2555.73812709,0.00014,2]
[329639454,1718523056198,-2724.565046,0.00014,2]
[329639455,1718523056647,-2080.68,0.00014,2]
[329639456,1718523056671,-1472.96,0.00014,2]
[329639459,1718523271488,195.91472603,6.94e-05,2]
[329639460,1718523279929,1479.12456021,0.000105,2]
[329639461,1718523301278,163.0,0.00027,30]
[329639462,1718523388339,1232.46417735,0.00027,30]
[329639463,1718523394684,955.97963783,0.0001,2]
[329639467,1718523450531,290.10514488,0.0001,2]
[329639468,1718523464445,289.98435442,0.0001,2]
[329639469,1718523521585,-716.68717565,0.00010965,2]
[329639470,1718523521619,-628.9,0.00010966,2]
[329639471,1718523521648,-6376.02221692,0.00011494,2]
[329639472,1718523521678,-331.36440605,0.00011494,2]
[329639473,1718523521711,-491.10975792,0.00011593,2]
[329639474,1718523521748,-1455.91644346,0.00011594,2]
[329639475,1718523523091,-10000.0,0.00011594,2]
[329639476,1718523530472,-7942.24892496,0.00011594,2]
[329639477,1718523530520,-981.0,0.00011697,2]
[329639478,1718523530578,-150.0,0.00011799,2]
[329639479,1718523530628,-926.75107504,0.000118,2]
[329639480,1718523551465,-150.0,0.00011799,2]
[329639481,1718523551536,-8005.887,0.000118,2]
[329639482,1718523556150,380.0,0.000275,120]